fUST/lending_fUST_20250623
["ID","MTS","AMOUNT","RATE_DAILY","PERIOD"]
[367162074,1750680646814,-452.74985381,0.00021917,2]
[367162075,1750680646826,-7.25014619,0.00021917,2]
[367162076,1750680646835,-500.0,0.00021917,2]
[367162077,1750680646844,-500.0,0.00021917,2]
[367162078,1750680646855,-500.0,0.00021917,2]
[367162079,1750680646864,-390.27924809,0.00021917,2]
[367162080,1750680646873,-410.98299414,0.00021917,2]
[367162081,1750680646882,-460.0,0.00021917,2]
[367162082,1750680646891,-460.0,0.00021917,2]
[367162083,1750680646901,-460.0,0.00021917,2]
[367162084,1750680646911,-460.0,0.00021917,2]
[367162085,1750680646920,-790.86,0.00021917,2]
[367162086,1750680646929,-460.0,0.00021917,2]
[367162087,1750680646939,-460.0,0.00021917,2]
[367162088,1750680646948,-460.0,0.00021917,2]
[367162089,1750680646957,-460.0,0.00021917,2]
[367162090,1750680646966,-460.0,0.00021917,2]
[367162091,1750680646976,-460.0,0.00021917,2]
[367162092,1750680646985,-2162.75,0.00021917,2]
[367162093,1750680646995,-460.0,0.00021917,2]
[367162094,1750680647004,-16.00261378,0.00021917,2]
[367162095,1750680647256,-254.88887083,0.00021917,2]
[367162096,1750680647280,-69.36186697,0.00021917,2]
[367162097,1750680647290,-511.75,0.00021917,2]
[367162098,1750680647299,-433.51168511,0.00021917,2]
[367162099,1750680678631,150.0,0.00022712,30]
[367162102,1750680761123,150.0,0.00022765,30]
[367162104,1750680836116,150.0,0.00021629,30]
[367162105,1750680836551,150.0,0.00023596,30]
[367162110,1750680912854,150.0,0.00021639,30]
[367162113,1750680991383,150.0,0.00022524,30]
[367162116,1750681183522,-168.0,0.00021754,2]
[367162117,1750681183542,-152.95990376,0.00021817,2]
[367162118,1750681183562,-5000.0,0.000219,5]
[367162119,1750681183583,-207.4,0.00021904,2]
[367162120,1750681183603,-1025.04,0.00021907,10]
[367162121,1750681183623,-988.36,0.00021907,10]
[367162122,1750681183643,-300.0,0.00021915,2]
[367162123,1750681183666,-160.69,0.00021916,2]
[367162124,1750681183686,-300.0,0.00021916,2]
[367162125,1750681183707,-154.92696209,0.00021916,2]
[367162126,1750681183728,-948.63091576,0.00021916,14]
[367162127,1750681183748,-12351.19415728,0.00021917,2]
[367162128,1750681183769,-1488.79806111,0.00021917,2]
[367162130,1750681257724,161.687385,0.00013699,2]
[367162131,1750681351925,800.0,0.00017972,2]
[367162132,1750681353629,800.0,0.00019068,2]
[367162133,1750681356333,-154.78209141,0.00019817,2]
[367162134,1750681356354,-42.33511542,0.00020164,2]
[367162136,1750681381400,-192.90798617,0.00019962,2]
[367162176,1750681631119,-153.18806094,0.00019817,2]
[367162177,1750681631145,-5000.0,0.00019962,2]
[367162178,1750681631169,-693.27082959,0.00020164,2]
[367162180,1750681634095,-64.39405499,0.00020164,2]
[367162181,1750681634116,-152.95990374,0.00020661,2]
[367162182,1750681634138,-300.0,0.00020688,2]
[367162183,1750681634161,-180.02968507,0.00020689,2]
[367162184,1750681634184,-207.98318391,0.00020689,2]
[367162185,1750681634205,-500.0,0.00020689,2]
[367162186,1750681634230,-500.0,0.00020689,2]
[367162187,1750681634250,-390.28926115,0.00020689,2]
[367162188,1750681634272,-437.10519169,0.00020689,2]
[367162189,1750681634294,-435.26156709,0.00020689,2]
[367162190,1750681634315,-500.0,0.00020689,2]
[367162191,1750681634336,-300.0,0.00020689,2]
[367162192,1750681634357,-4867.6415146,0.0002069,2]
[367162242,1750681752239,500.0,0.00019068,2]
[367162266,1750681831893,-5000.0,0.00019619,2]
[367162267,1750681831903,-150.0,0.00019817,2]
[367162268,1750681831912,-500.0,0.00020164,2]
[367162269,1750681831922,-1824.3951601,0.00020606,2]
[367162270,1750681831931,-300.0,0.00020689,2]
[367162271,1750681831941,-1200.0,0.00020689,2]
[367162272,1750681831951,-908.48725092,0.0002069,2]
[367162296,1750681837738,-1459.30818765,0.0002069,2]
[367162302,1750681837794,-17664.56304683,0.0002069,2]
[367162304,1750681837803,-185.125763,0.00020761,2]
[367162308,1750681837824,-1264.7972335,0.00020809,2]
[367162310,1750681837834,-207.4,0.00021042,2]
[367162312,1750681837844,-500.0,0.0002126,2]
[367162314,1750681837854,-161.687385,0.00021404,2]
[367162316,1750681837863,-152.95990374,0.00021804,2]
[367162318,1750681837873,-231.35751984,0.00021817,2]
[367162320,1750681837882,-1164.0,0.00021857,2]
[367162322,1750681837892,-823.64,0.00021907,10]
[367162324,1750681837901,-686.36,0.00021907,10]
[367162326,1750681837911,-500.0,0.00021916,2]
[367162328,1750681837920,-182.37040459,0.00021916,2]
[367162330,1750681837930,-515.49506676,0.00021916,2]
[367162332,1750681837940,-404.44330733,0.00021916,2]
[367162334,1750681837949,-155.0,0.00021916,2]
[367162336,1750681837959,-1000.0,0.00021916,2]
[367162338,1750681837968,-1000.0,0.00021916,2]
[367162340,1750681837978,-168.79,0.00021916,2]
[367162342,1750681837987,-26402.90186982,0.00021917,2]
[367162344,1750681837997,-6270.80136684,0.00021917,2]
[367162346,1750681838006,-500.0,0.00021917,2]
[367162348,1750681838015,-460.0,0.00021917,2]
[367162350,1750681838025,-460.0,0.00021917,2]
[367162352,1750681838035,-460.0,0.00021917,2]
[367162354,1750681838045,-460.0,0.00021917,2]
[367162356,1750681838055,-526.41,0.00021917,2]
[367162358,1750681838064,-460.0,0.00021917,2]
[367162360,1750681838073,-460.0,0.00021917,2]
[367162362,1750681838083,-541.31,0.00021917,2]
[367162364,1750681838093,-460.0,0.00021917,2]
[367162366,1750681838103,-460.0,0.00021917,2]
[367162368,1750681838112,-460.0,0.00021917,2]
[367162370,1750681838121,-460.0,0.00021917,2]
[367162372,1750681838131,-341.8984415,0.00021917,2]
[367162374,1750681838140,-432.24299732,0.00021917,2]
[367162376,1750681838154,-230.38214132,0.00021917,2]
[367162378,1750681838163,-460.0,0.00021917,2]
[367162380,1750681838173,-318.20872648,0.00021917,2]
[367162411,1750681838444,-460.0,0.00021917,2]
[367162413,1750681838454,-578.04,0.00021917,2]
[367162415,1750681838464,-460.0,0.00021917,2]
[367162417,1750681838474,-1136.05,0.00021917,2]
[367162419,1750681838483,-823.6,0.00021917,2]
[367162421,1750681838493,-460.0,0.00021917,2]
[367162423,1750681838502,-460.0,0.00021917,2]
[367162425,1750681838511,-460.0,0.00021917,2]
[367162427,1750681838520,-460.0,0.00021917,2]
[367162429,1750681838529,-460.0,0.00021917,2]
[367162431,1750681838539,-588.9,0.00021917,2]
[367162432,1750681838548,-460.0,0.00021917,2]
[367162434,1750681838557,-460.0,0.00021917,2]
[367162436,1750681838567,-460.0,0.00021917,2]
[367162438,1750681838576,-460.0,0.00021917,2]
[367162440,1750681838586,-460.0,0.00021917,2]
[367162442,1750681838595,-460.0,0.00021917,2]
[367162445,1750681838605,-460.0,0.00021917,2]
[367162446,1750681838614,-460.0,0.00021917,2]
[367162448,1750681838623,-460.0,0.00021917,2]
[367162450,1750681838633,-460.0,0.00021917,2]
[367162452,1750681838643,-555.14,0.00021917,2]
[367162454,1750681838652,-460.0,0.00021917,2]
[367162456,1750681838662,-460.0,0.00021917,2]
[367162458,1750681838672,-460.0,0.00021917,2]
[367162461,1750681838682,-460.0,0.00021917,2]
[367162462,1750681838691,-460.0,0.00021917,2]
[367162465,1750681838701,-460.0,0.00021917,2]
[367162466,1750681838711,-460.0,0.00021917,2]
[367162468,1750681838721,-460.0,0.00021917,2]
[367162470,1750681838731,-460.0,0.00021917,2]
[367162472,1750681838741,-460.0,0.00021917,2]
[367162474,1750681838751,-460.0,0.00021917,2]
[367162476,1750681838760,-460.0,0.00021917,2]
[367162478,1750681838770,-460.0,0.00021917,2]
[367162480,1750681838781,-660.03,0.00021917,2]
[367162482,1750681838791,-460.0,0.00021917,2]
[367162485,1750681838805,-460.0,0.00021917,2]
[367162487,1750681838814,-460.0,0.00021917,2]
[367162489,1750681838825,-460.0,0.00021917,2]
[367162491,1750681838835,-460.0,0.00021917,2]
[367162493,1750681838844,-627.38,0.00021917,2]
[367162495,1750681838854,-460.0,0.00021917,2]
[367162497,1750681838863,-460.0,0.00021917,2]
[367162499,1750681838873,-460.0,0.00021917,2]
[367162501,1750681838882,-460.0,0.00021917,2]
[367162503,1750681838893,-460.0,0.00021917,2]
[367162505,1750681838903,-460.0,0.00021917,2]
[367162507,1750681838912,-460.0,0.00021917,2]
[367162509,1750681838921,-151.0,0.00021917,2]
[367162511,1750681838930,-460.0,0.00021917,2]
[367162513,1750681838939,-460.0,0.00021917,2]
[367162515,1750681838949,-460.0,0.00021917,2]
[367162517,1750681838958,-676.07,0.00021917,2]
[367162519,1750681838967,-460.0,0.00021917,2]
[367162521,1750681838977,-460.0,0.00021917,2]
[367162522,1750681838987,-460.0,0.00021917,2]
[367162525,1750681838998,-460.0,0.00021917,2]
[367162526,1750681839008,-460.0,0.00021917,2]
[367162527,1750681839017,-798.27,0.00021917,2]
[367162528,1750681839028,-460.0,0.00021917,2]
[367162529,1750681839037,-460.0,0.00021917,2]
[367162530,1750681839047,-612.41,0.00021917,2]
[367162531,1750681839057,-460.0,0.00021917,2]
[367162532,1750681839068,-460.0,0.00021917,2]
[367162533,1750681839078,-500.0,0.00021917,2]
[367162534,1750681839088,-460.0,0.00021917,2]
[367162535,1750681839098,-460.0,0.00021917,2]
[367162536,1750681839107,-460.0,0.00021917,2]
[367162537,1750681839117,-460.0,0.00021917,2]
[367162538,1750681839127,-460.0,0.00021917,2]
[367162539,1750681839138,-460.0,0.00021917,2]
[367162540,1750681839150,-460.0,0.00021917,2]
[367162541,1750681839159,-460.0,0.00021917,2]
[367162542,1750681839169,-469.28,0.00021917,2]
[367162543,1750681839179,-461.83,0.00021917,2]
[367162544,1750681839188,-460.0,0.00021917,2]
[367162545,1750681839198,-460.0,0.00021917,2]
[367162546,1750681839208,-460.0,0.00021917,2]
[367162547,1750681839217,-460.0,0.00021917,2]
[367162548,1750681839227,-460.0,0.00021917,2]
[367162549,1750681839237,-460.0,0.00021917,2]
[367162550,1750681839247,-405.37084892,0.00021917,2]
[367162551,1750681839257,-460.0,0.00021917,2]
[367162552,1750681839266,-1415.59,0.00021917,2]
[367162553,1750681839277,-460.0,0.00021917,2]
[367162554,1750681839286,-460.0,0.00021917,2]
[367162556,1750681839296,-460.0,0.00021917,2]
[367162557,1750681839305,-151.0,0.00021917,2]
[367162558,1750681839315,-460.0,0.00021917,2]
[367162559,1750681839324,-620.74,0.00021917,2]
[367162560,1750681839335,-500.0,0.00021917,2]
[367162561,1750681839345,-2389.28,0.00021917,2]
[367162563,1750681839355,-161.74308903,0.00021917,2]
[367162565,1750681839364,-460.0,0.00021917,2]
[367162567,1750681839373,-925.83,0.00021917,2]
[367162569,1750681839383,-460.0,0.00021917,2]
[367162571,1750681839393,-460.0,0.00021917,2]
[367162573,1750681839402,-460.0,0.00021917,2]
[367162576,1750681839411,-460.0,0.00021917,2]
[367162578,1750681839421,-460.0,0.00021917,2]
[367162580,1750681839430,-460.0,0.00021917,2]
[367162582,1750681839440,-460.0,0.00021917,2]
[367162584,1750681839449,-460.0,0.00021917,2]
[367162586,1750681839460,-460.0,0.00021917,2]
[367162588,1750681839469,-785.69,0.00021917,2]
[367162590,1750681839480,-844.34,0.00021917,2]
[367162592,1750681839490,-460.0,0.00021917,2]
[367162594,1750681839500,-460.0,0.00021917,2]
[367162596,1750681839510,-460.0,0.00021917,2]
[367162598,1750681839519,-855.01,0.00021917,2]
[367162600,1750681839529,-610.97,0.00021917,2]
[367162602,1750681839539,-460.0,0.00021917,2]
[367162604,1750681839549,-460.0,0.00021917,2]
[367162606,1750681839559,-936.06,0.00021917,2]
[367162608,1750681839569,-623.49,0.00021917,2]
[367162610,1750681839579,-460.0,0.00021917,2]
[367162612,1750681839588,-460.0,0.00021917,2]
[367162614,1750681839599,-606.33,0.00021917,2]
[367162616,1750681839608,-460.0,0.00021917,2]
[367162618,1750681839618,-731.56,0.00021917,2]
[367162620,1750681839627,-460.0,0.00021917,2]
[367162622,1750681839636,-460.0,0.00021917,2]
[367162624,1750681839646,-460.0,0.00021917,2]
[367162626,1750681839655,-460.0,0.00021917,2]
[367162628,1750681839664,-460.0,0.00021917,2]
[367162630,1750681839674,-151.0,0.00021917,2]
[367162632,1750681839684,-460.0,0.00021917,2]
[367162634,1750681839693,-460.0,0.00021917,2]
[367162636,1750681839704,-151.0,0.00021917,2]
[367162638,1750681839714,-151.0,0.00021917,2]
[367162640,1750681839724,-460.0,0.00021917,2]
[367162642,1750681839733,-460.0,0.00021917,2]
[367162644,1750681839742,-151.31756435,0.00021917,2]
[367162646,1750681839752,-151.0,0.00021917,2]
[367162648,1750681839761,-460.0,0.00021917,2]
[367162650,1750681839771,-460.0,0.00021917,2]
[367162652,1750681839781,-1142.83,0.00021917,2]
[367162654,1750681839791,-547.28,0.00021917,2]
[367162656,1750681839801,-460.0,0.00021917,2]
[367162658,1750681839810,-460.0,0.00021917,2]
[367162660,1750681839820,-460.0,0.00021917,2]
[367162662,1750681839830,-460.0,0.00021917,2]
[367162664,1750681839839,-573.79956687,0.00021917,2]
[367162666,1750681839850,-460.0,0.00021917,2]
[367162668,1750681839860,-460.0,0.00021917,2]
[367162670,1750681839869,-460.0,0.00021917,2]
[367162672,1750681839879,-460.0,0.00021917,2]
[367162674,1750681839888,-460.0,0.00021917,2]
[367162676,1750681839898,-752.27,0.00021917,2]
[367162678,1750681839908,-460.0,0.00021917,2]
[367162680,1750681839917,-460.0,0.00021917,2]
[367162682,1750681839927,-151.0,0.00021917,2]
[367162684,1750681839937,-460.0,0.00021917,2]
[367162686,1750681839947,-460.0,0.00021917,2]
[367162688,1750681839957,-460.0,0.00021917,2]
[367162690,1750681839967,-543.29,0.00021917,2]
[367162692,1750681839977,-538.47,0.00021917,2]
[367162694,1750681839987,-460.0,0.00021917,2]
[367162696,1750681839997,-460.0,0.00021917,2]
[367162698,1750681840006,-151.0,0.00021917,2]
[367162700,1750681840016,-658.09,0.00021917,2]
[367162702,1750681840025,-460.0,0.00021917,2]
[367162704,1750681840035,-858.92,0.00021917,2]
[367162706,1750681840045,-460.0,0.00021917,2]
[367162708,1750681840055,-460.0,0.00021917,2]
[367162710,1750681840065,-151.703439,0.00021917,2]
[367162712,1750681840075,-460.0,0.00021917,2]
[367162714,1750681840085,-460.0,0.00021917,2]
[367162716,1750681840094,-460.0,0.00021917,2]
[367162718,1750681840103,-151.186178,0.00021917,2]
[367162720,1750681840112,-460.0,0.00021917,2]
[367162722,1750681840122,-151.0,0.00021917,2]
[367162724,1750681840131,-460.0,0.00021917,2]
[367162726,1750681840141,-460.0,0.00021917,2]
[367162728,1750681840153,-460.0,0.00021917,2]
[367162730,1750681840162,-460.0,0.00021917,2]
[367162732,1750681840171,-460.0,0.00021917,2]
[367162734,1750681840181,-500.0,0.00021917,2]
[367162736,1750681840190,-151.0,0.00021917,2]
[367162738,1750681840200,-500.0,0.00021917,2]
[367162740,1750681840209,-460.0,0.00021917,2]
[367162741,1750681840218,-500.0,0.00021917,2]
[367162743,1750681840228,-500.0,0.00021917,2]
[367162746,1750681840238,-500.0,0.00021917,2]
[367162747,1750681840248,-500.0,0.00021917,2]
[367162750,1750681840257,-500.0,0.00021917,2]
[367162752,1750681840267,-500.0,0.00021917,2]
[367162754,1750681840277,-412.89983527,0.00021917,2]
[367162756,1750681840287,-151.0,0.00021917,2]
[367162758,1750681840297,-974.0,0.00021917,2]
[367162760,1750681840306,-151.0,0.00021917,2]
[367162762,1750681840316,-704.16,0.00021917,2]
[367162764,1750681840325,-461.46988072,0.00021917,2]
[367162766,1750681840334,-639.56,0.00021917,2]
[367162767,1750681840344,-460.0,0.00021917,2]
[367162769,1750681840354,-460.0,0.00021917,2]
[367162771,1750681840363,-152.795637,0.00021917,2]
[367162773,1750681840373,-460.0,0.00021917,2]
[367162776,1750681840383,-460.0,0.00021917,2]
[367162778,1750681840393,-460.0,0.00021917,2]
[367162780,1750681840403,-460.0,0.00021917,2]
[367162782,1750681840413,-460.0,0.00021917,2]
[367162783,1750681840422,-460.0,0.00021917,2]
[367162785,1750681840431,-460.0,0.00021917,2]
[367162787,1750681840441,-460.0,0.00021917,2]
[367162789,1750681840451,-460.0,0.00021917,2]
[367162791,1750681840460,-460.0,0.00021917,2]
[367162793,1750681840469,-460.0,0.00021917,2]
[367162795,1750681840479,-460.0,0.00021917,2]
[367162797,1750681840488,-460.0,0.00021917,2]
[367162799,1750681840498,-547.46089115,0.00021917,2]
[367162801,1750681840507,-460.0,0.00021917,2]
[367162803,1750681840517,-460.0,0.00021917,2]
[367162805,1750681840526,-460.0,0.00021917,2]
[367162807,1750681840536,-460.0,0.00021917,2]
[367162809,1750681840545,-460.0,0.00021917,2]
[367162811,1750681840555,-460.0,0.00021917,2]
[367162813,1750681840564,-499.25,0.00021917,2]
[367162815,1750681840574,-460.0,0.00021917,2]
[367162817,1750681840583,-151.0,0.00021917,2]
[367162819,1750681840593,-1327.03,0.00021917,2]
[367162821,1750681840603,-460.0,0.00021917,2]
[367162823,1750681840612,-460.0,0.00021917,2]
[367162825,1750681840622,-460.0,0.00021917,2]
[367162827,1750681840633,-493.17,0.00021917,2]
[367162829,1750681840643,-486.38,0.00021917,2]
[367162831,1750681840653,-460.0,0.00021917,2]
[367162833,1750681840663,-460.0,0.00021917,2]
[367162836,1750681840673,-460.0,0.00021917,2]
[367162838,1750681840682,-1120.13,0.00021917,2]
[367162839,1750681840691,-460.0,0.00021917,2]
[367162841,1750681840701,-499.25,0.00021917,2]
[367162843,1750681840711,-601.46,0.00021917,2]
[367162845,1750681840720,-460.0,0.00021917,2]
[367162847,1750681840730,-460.0,0.00021917,2]
[367162849,1750681840739,-460.0,0.00021917,2]
[367162851,1750681840748,-344.25208052,0.00021917,2]
[367162853,1750681840758,-500.0,0.00021917,2]
[367162855,1750681840768,-500.0,0.00021917,2]
[367162857,1750681840777,-500.0,0.00021917,2]
[367162859,1750681840787,-500.0,0.00021917,2]
[367162861,1750681840796,-500.0,0.00021917,2]
[367162863,1750681840806,-500.0,0.00021917,2]
[367162865,1750681840815,-500.0,0.00021917,2]
[367162867,1750681840826,-500.0,0.00021917,2]
[367162869,1750681840835,-460.0,0.00021917,2]
[367162871,1750681840844,-460.0,0.00021917,2]
[367162873,1750681840854,-521.52305055,0.00021917,2]
[367162875,1750681840863,-460.0,0.00021917,2]
[367162877,1750681840873,-460.0,0.00021917,2]
[367162879,1750681840882,-205.46665934,0.00021917,2]
[367162881,1750681840892,-460.0,0.00021917,2]
[367162883,1750681840901,-428.57409162,0.00021917,2]
[367162885,1750681840911,-2376.11,0.00021917,2]
[367162887,1750681840920,-1203.55,0.00021917,2]
[367162889,1750681840930,-460.0,0.00021917,2]
[367162890,1750681840942,-460.0,0.00021917,2]
[367162892,1750681840951,-460.0,0.00021917,2]
[367162894,1750681840961,-460.0,0.00021917,2]
[367162896,1750681840970,-593.87001257,0.00021917,2]
[367162898,1750681840980,-460.0,0.00021917,2]
[367162900,1750681840989,-333.33982744,0.00021917,2]
[367162902,1750681840999,-2844.35,0.00021917,2]
[367162904,1750681841008,-460.0,0.00021917,2]
[367162906,1750681841018,-460.0,0.00021917,2]
[367162908,1750681841027,-460.0,0.00021917,2]
[367162910,1750681841037,-460.0,0.00021917,2]
[367162912,1750681841046,-460.0,0.00021917,2]
[367162914,1750681841056,-460.0,0.00021917,2]
[367162916,1750681841066,-460.0,0.00021917,2]
[367162918,1750681841075,-460.0,0.00021917,2]
[367162920,1750681841085,-460.0,0.00021917,2]
[367162922,1750681841094,-460.0,0.00021917,2]
[367162924,1750681841103,-460.0,0.00021917,2]
[367162926,1750681841113,-568.05,0.00021917,2]
[367162928,1750681841122,-460.0,0.00021917,2]
[367162930,1750681841131,-460.0,0.00021917,2]
[367162932,1750681841142,-460.0,0.00021917,2]
[367162935,1750681841156,-493.0,0.00021917,2]
[367162936,1750681841166,-151.0,0.00021917,2]
[367162939,1750681841176,-460.0,0.00021917,2]
[367162941,1750681841186,-460.0,0.00021917,2]
[367162943,1750681841196,-460.0,0.00021917,2]
[367162944,1750681841206,-460.0,0.00021917,2]
[367162946,1750681841215,-460.0,0.00021917,2]
[367162948,1750681841226,-151.0,0.00021917,2]
[367162950,1750681841235,-500.0,0.00021917,2]
[367162952,1750681841244,-460.0,0.00021917,2]
[367162954,1750681841253,-300.0,0.00021917,2]
[367162956,1750681841263,-912.0,0.00021917,2]
[367162958,1750681841272,-151.0,0.00021917,2]
[367162960,1750681841281,-151.0,0.00021917,2]
[367162962,1750681841291,-465.61923004,0.00021917,2]
[367162964,1750681841299,-460.0,0.00021917,2]
[367162966,1750681841309,-460.0,0.00021917,2]
[367162968,1750681841319,-460.0,0.00021917,2]
[367162970,1750681841328,-735.05,0.00021917,2]
[367162972,1750681841337,-151.0,0.00021917,2]
[367162974,1750681841347,-463.29,0.00021917,2]
[367162976,1750681841357,-460.0,0.00021917,2]
[367162978,1750681841366,-460.0,0.00021917,2]
[367162980,1750681841376,-151.0,0.00021917,2]
[367162982,1750681841386,-468.04,0.00021917,2]
[367162984,1750681841395,-460.0,0.00021917,2]
[367162986,1750681841405,-175.03931805,0.00021917,2]
[367162988,1750681841414,-151.0,0.00021917,2]
[367162990,1750681841423,-153.192092,0.00021917,2]
[367162992,1750681841433,-460.0,0.00021917,2]
[367162994,1750681841443,-500.0,0.00021917,2]
[367162996,1750681841452,-460.0,0.00021917,2]
[367162998,1750681841461,-544.58,0.00021917,2]
[367163000,1750681841470,-460.0,0.00021917,2]
[367163002,1750681841481,-460.0,0.00021917,2]
[367163004,1750681841490,-151.0,0.00021917,2]
[367163007,1750681841508,-460.0,0.00021917,2]
[367163009,1750681841519,-460.0,0.00021917,2]
[367163011,1750681841529,-597.77,0.00021917,2]
[367163013,1750681841539,-460.0,0.00021917,2]
[367163015,1750681841551,-460.0,0.00021917,2]
[367163017,1750681841560,-460.0,0.00021917,2]
[367163019,1750681841570,-551.65,0.00021917,2]
[367163021,1750681841580,-460.0,0.00021917,2]
[367163023,1750681841590,-440.37008822,0.00021917,2]
[367163026,1750681841600,-460.0,0.00021917,2]
[367163027,1750681841609,-460.0,0.00021917,2]
[367163029,1750681841620,-460.0,0.00021917,2]
[367163032,1750681841630,-460.0,0.00021917,2]
[367163034,1750681841642,-460.0,0.00021917,2]
[367163036,1750681841651,-460.0,0.00021917,2]
[367163038,1750681841661,-460.0,0.00021917,2]
[367163040,1750681841671,-460.0,0.00021917,2]
[367163042,1750681841681,-460.0,0.00021917,2]
[367163044,1750681841691,-460.0,0.00021917,2]
[367163046,1750681841701,-460.0,0.00021917,2]
[367163048,1750681841710,-500.0,0.00021917,2]
[367163050,1750681841720,-500.0,0.00021917,2]
[367163052,1750681841730,-460.0,0.00021917,2]
[367163054,1750681841739,-500.0,0.00021917,2]
[367163056,1750681841750,-500.0,0.00021917,2]
[367163058,1750681841760,-500.0,0.00021917,2]
[367163060,1750681841769,-500.0,0.00021917,2]
[367163062,1750681841779,-500.0,0.00021917,2]
[367163063,1750681841789,-500.0,0.00021917,2]
[367163064,1750681841800,-500.0,0.00021917,2]
[367163065,1750681841810,-460.0,0.00021917,2]
[367163066,1750681841820,-500.0,0.00021917,2]
[367163067,1750681841830,-500.0,0.00021917,2]
[367163068,1750681841839,-500.0,0.00021917,2]
[367163069,1750681841849,-500.0,0.00021917,2]
[367163070,1750681841859,-500.0,0.00021917,2]
[367163071,1750681841869,-500.0,0.00021917,2]
[367163072,1750681841878,-357.95,0.00021917,2]
[367163074,1750681841888,-460.0,0.00021917,2]
[367163076,1750681841897,-402.03869345,0.00021917,2]
[367163078,1750681841907,-151.0,0.00021917,2]
[367163080,1750681841917,-460.0,0.00021917,2]
[367163082,1750681841926,-460.0,0.00021917,2]
[367163084,1750681841936,-153.221812,0.00021917,2]
[367163087,1750681841946,-460.0,0.00021917,2]
[367163089,1750681841956,-460.0,0.00021917,2]
[367163091,1750681841965,-151.0,0.00021917,2]
[367163093,1750681841975,-460.0,0.00021917,2]
[367163095,1750681841984,-460.0,0.00021917,2]
[367163097,1750681841993,-151.0,0.00021917,2]
[367163099,1750681842003,-460.0,0.00021917,2]
[367163101,1750681842012,-460.0,0.00021917,2]
[367163103,1750681842022,-460.0,0.00021917,2]
[367163105,1750681842030,-934.28,0.00021917,2]
[367163107,1750681842039,-460.0,0.00021917,2]
[367163109,1750681842049,-577.87,0.00021917,2]
[367163111,1750681842058,-460.0,0.00021917,2]
[367163113,1750681842070,-560.18,0.00021917,2]
[367163115,1750681842081,-943.48,0.00021917,2]
[367163117,1750681842090,-460.0,0.00021917,2]
[367163119,1750681842100,-460.19,0.00021917,2]
[367163121,1750681842110,-151.0,0.00021917,2]
[367163123,1750681842119,-460.0,0.00021917,2]
[367163126,1750681842129,-460.0,0.00021917,2]
[367163129,1750681842138,-460.0,0.00021917,2]
[367163131,1750681842148,-602.11353351,0.00021917,2]
[367163133,1750681842157,-151.0,0.00021917,2]
[367163135,1750681842167,-460.0,0.00021917,2]
[367163137,1750681842176,-151.0,0.00021917,2]
[367163139,1750681842185,-198.0,0.00021917,2]
[367163141,1750681842195,-460.0,0.00021917,2]